bitfinex/quotes_SOLUSD_20250305
["timestamp","ask_amount","ask_price","bid_price","bid_amount"]
[1741193071843,0.28432314,141.21,141.15,80.9]
[1741193072056,0.28432314,141.21,141.13,30.4262106]
[1741193072057,0.28432314,141.19,141.13,30.4262106]
[1741193072253,81.0,141.18,141.11,30.4262106]
[1741193072636,7.0836,141.17,141.12,18.64964886]
[1741193073041,88.0832,141.18,141.12,18.64964886]
[1741193073545,88.0832,141.18,141.12,49.07585946]
[1741193073746,81.28432314,141.17,141.1,7.0869]
[1741193074048,7.7689,141.14,141.08,80.9]
[1741193074244,81.0,141.13,141.06,30.4262106]
[1741193074449,81.0,141.13,141.07,18.64964886]
[1741193074766,7.37042314,141.12,141.04,80.9000654]
[1741193074945,0.28432314,141.1,141.04,6.54e-05]
[1741193075354,81.0,141.11,141.04,37.516276]
[1741193075558,81.0,141.11,141.05,30.4262106]
[1741193075955,81.0,141.11,141.04,7.0900654]
[1741193076265,0.28432314,141.1,141.04,7.0901654]
[1741193076680,0.28432314,141.1,141.04,6.54e-05]
[1741193077147,81.0,141.11,141.04,6.54e-05]
[1741193077349,88.0867,141.11,141.04,30.426276]
[1741193077547,88.0867,141.11,141.05,30.4262106]
[1741193077548,81.0,141.11,141.05,30.4262106]
[1741193077768,81.0,141.11,141.06,30.4262106]
[1741193077949,81.0,141.11,141.07,30.4262106]
[1741193078141,81.0,141.13,141.09,30.4262106]
[1741193078345,7.7689,141.14,141.1,30.4262106]
[1741193078871,7.7689,141.14,141.11,30.4262106]
[1741193079040,81.0,141.16,141.11,30.4262106]
[1741193079872,81.0,141.15,141.09,30.4262106]
[1741193080768,81.0,141.15,141.08,111.3262106]
[1741193080958,7.0851,141.14,141.08,111.3262106]
[1741193081158,81.0,141.15,141.08,118.4143106]
[1741193081458,81.0,141.15,141.1,30.4262106]
[1741193081657,81.0,141.15,141.12,30.4262106]
[1741193081858,81.0,141.17,141.12,30.4262106]
[1741193082680,81.0,141.17,141.11,30.4262106]
[1741193082976,88.0837,141.17,141.09,129.97585946]
[1741193083282,81.28432314,141.16,141.08,37.5143106]
[1741193083875,81.28432314,141.16,141.09,30.4262106]
[1741193084575,81.0,141.16,141.11,30.4262106]
[1741193084751,81.0,141.16,141.12,30.4262106]
[1741193084952,7.7884,141.18,141.14,30.4262106]
[1741193085465,81.0,141.2,141.15,30.4262106]
[1741193085660,0.03,141.18,141.15,30.4262106]
[1741193086073,0.03,141.18,141.14,30.4262106]
[1741193086559,0.03,141.18,141.14,19.01421208]
[1741193087061,0.03,141.18,141.14,26.09931208]
[1741193088184,0.03,141.18,141.14,7.0851]
[1741193088373,0.03,141.18,141.14,26.09931208]
[1741193088560,0.03,141.18,141.13,399.9854]
[1741193088759,0.03,141.18,141.13,418.99961208]
[1741193088964,0.03,141.18,141.12,26.10011208]
[1741193089166,81.03,141.18,141.12,26.10011208]
[1741193090569,0.03,141.18,141.15,19.01421208]
[1741193090766,0.03,141.18,141.16,19.01421208]
[1741193091162,0.03,141.18,141.15,19.01421208]
[1741193091855,0.03,141.18,141.17,19.01421208]
[1741193092780,0.03,141.18,141.17,7.0836]
[1741193092976,0.03,141.18,141.15,312.0]
[1741193092977,0.03,141.18,141.15,338.09861208]
[1741193093176,0.03,141.18,141.13,7.0853]
[1741193093589,0.03,141.18,141.13,26.09951208]
[1741193093760,0.03,141.18,141.14,19.01421208]
[1741193093962,0.03,141.18,141.15,19.01421208]
[1741193094162,0.03,141.18,141.16,19.01421208]
[1741193094462,0.03,141.18,141.17,19.01421208]
[1741193094982,0.03,141.18,141.17,26.09781208]
[1741193095159,0.03,141.18,141.17,44.74746094]
[1741193095876,0.03,141.18,141.16,7.0837]
[1741193096179,0.03,141.18,141.14,19.01421208]
[1741193096364,0.03,141.18,141.13,19.01421208]
[1741193096567,0.03,141.18,141.12,107.00011208]
[1741193096765,0.03,141.18,141.12,80.9]
[1741193097084,7.1131,141.18,141.12,107.00031208]
[1741193097468,7.1131,141.18,141.12,99.91421208]
[1741193097669,7.1131,141.18,141.12,80.9]
[1741193097972,24.8209,141.18,141.12,80.9]
[1741193098383,7.1131,141.18,141.12,80.9]
[1741193098760,0.03,141.18,141.13,19.01421208]
[1741193098957,0.03,141.18,141.15,26.09881208]
[1741193099164,0.03,141.18,141.16,19.01421208]
[1741193100063,0.03,141.18,141.17,37.66386094]
[1741193100267,0.03,141.22,141.2,20.0]
[1741193100590,0.0001,141.22,141.21,37.94818408]
[1741193100875,10.99450111,141.25,141.24,38.933972]
[1741193101084,1.11e-06,141.25,141.24,146.21260722]
[1741193101295,0.03,141.3,141.28,20.14216157]
[1741193101466,0.03,141.3,141.28,59.43408461]
[1741193102260,0.03,141.3,141.28,369.80602251]
[1741193102462,0.03,141.3,141.28,312.0]
[1741193102663,0.03,141.3,141.25,30.51592547]
[1741193102965,0.03,141.3,141.27,30.3737639]
[1741193103482,0.03,141.3,141.26,49.02341276]
[1741193104261,0.03,141.3,141.28,30.3737639]
[1741193104668,0.03,141.3,141.28,130.06557433]
[1741193104884,0.03,141.3,141.28,131.97804686]
[1741193105064,0.03,141.33,141.29,27.02189514]
[1741193105266,0.03,141.33,141.32,30.3737639]
[1741193105467,0.03,141.33,141.29,30.3737639]
[1741193105693,0.03,141.33,141.28,87.4]
[1741193105866,0.03,141.33,141.28,80.9]
[1741193106067,81.03,141.33,141.26,111.2737639]
[1741193106286,81.03,141.33,141.27,30.3737639]
[1741193106493,81.03,141.33,141.26,80.9]
[1741193106665,81.28432314,141.32,141.24,80.9]
[1741193106996,81.0,141.31,141.26,30.3737639]
[1741193107293,81.0,141.31,141.28,30.3737639]
[1741193107589,81.0,141.31,141.27,18.64964886]
[1741193107791,0.03,141.33,141.28,30.3737639]
[1741193107985,0.03,141.33,141.3,30.3737639]
[1741193108678,0.03,141.33,141.3,342.3737639]
[1741193109078,0.03,141.33,141.32,37.4498639]
[1741193109397,0.03,141.33,141.32,56.3838359]
[1741193109587,0.03,141.33,141.32,137.2838359]
[1741193109782,0.03,141.33,141.32,137.14167433]
[1741193109961,0.03,141.33,141.32,130.06557433]
[1741193110164,0.03,141.33,141.32,137.14167433]
[1741193110363,0.03,141.33,141.32,30.3737639]
[1741193110685,0.03,141.33,141.27,111.2737639]
[1741193111069,0.03,141.33,141.3,7.0771]
[1741193111272,0.03,141.33,141.27,129.92341276]
[1741193111479,0.03,141.32,141.27,99.54964886]
[1741193111790,0.03,141.32,141.25,11.1414709]
[1741193111981,81.0,141.31,141.25,11.1414709]
[1741193112986,81.0,141.31,141.26,30.3737639]
[1741193113493,0.03,141.32,141.27,30.3737639]
[1741193114210,0.03,141.32,141.26,37.4525639]
[1741193114574,0.03,141.32,141.27,30.3737639]
[1741193114770,0.03,141.32,141.26,7.0788]
[1741193114971,0.03,141.32,141.26,37.4525639]
[1741193115298,0.03,141.32,141.27,30.3737639]
[1741193115867,0.31432314,141.32,141.25,7.0796]
[1741193116567,0.17216157,141.32,141.25,7.0796]
[1741193116770,0.28432314,141.3,141.24,0.033]
[1741193117094,46.49760257,141.29,141.24,0.033]
[1741193118510,53.57540257,141.29,141.24,0.033]
[1741193119015,46.49760257,141.29,141.24,0.033]
[1741193119379,53.57530257,141.29,141.24,0.033]
[1741193119787,7.7667,141.27,141.24,0.033]
[1741193120095,46.49760257,141.26,141.24,0.033]
[1741193120820,6.2687,141.31,141.25,0.14216157]
[1741193120986,1.6195,141.32,141.27,30.3737639]
[1741193121385,1.6195,141.32,141.27,7.0786]
[1741193121885,1.6195,141.32,141.27,55.1489639]
[1741193122613,0.03,141.32,141.28,30.3737639]
[1741193122815,0.03,141.32,141.28,342.3737639]
[1741193123497,0.03,141.32,141.29,7.0776]
[1741193125701,0.03,141.32,141.29,24.7717]
[1741193126014,0.03,141.32,141.29,55.1454639]
[1741193127497,0.03,141.32,141.3,49.16557433]
[1741193127698,0.03,141.32,141.31,37.4503639]
[1741193128418,0.03,141.33,141.31,37.4503639]
[1741193128592,0.03,141.33,141.32,30.3737639]
[1741193129001,0.03,141.33,141.31,319.0766]
[1741193129721,0.03,141.33,141.32,30.3737639]
[1741193129892,0.03,141.33,141.32,37.4498639]
[1741193130094,0.03,141.33,141.32,56.24167433]
[1741193130390,0.03,141.33,141.32,37.4498639]
[1741193130621,0.03,141.33,141.31,7.0764]
[1741193130925,0.03,141.33,141.3,7.077]
[1741193131534,0.03,141.33,141.26,98.5968]
[1741193131837,0.03,141.33,141.24,105.633]
[1741193131838,13.3711,141.31,141.24,7.1129]
[1741193132123,48.12350257,141.32,141.27,30.3737639]
[1741193132515,48.12350257,141.32,141.26,18.64964886]
[1741193132720,48.12350257,141.32,141.27,312.0]
[1741193133593,48.12350257,141.32,141.27,342.3737639]
[1741193133796,0.03,141.33,141.29,30.3737639]
[1741193133987,0.03,141.33,141.29,37.4511639]
[1741193135526,0.03,141.33,141.25,7.0796]
[1741193135819,46.52760257,141.33,141.25,37.4533639]
[1741193136025,53.60350257,141.33,141.25,37.4533639]
[1741193136331,53.60350257,141.33,141.26,30.3737639]
[1741193136627,53.60350257,141.33,141.27,18.79181043]
[1741193136821,46.52760257,141.33,141.28,342.3737639]
[1741193137123,0.03,141.33,141.28,342.3737639]
[1741193137728,0.03,141.33,141.29,30.3737639]
[1741193138033,0.03,141.33,141.31,7.0766]
[1741193138910,0.03,141.33,141.31,37.4503639]
[1741193139425,0.03,141.33,141.3,7.0769]
[1741193139930,0.03,141.33,141.3,37.4506639]
[1741193141139,0.03,141.33,141.3,7.0769]
[1741193141319,0.03,141.33,141.3,37.4506639]
[1741193141522,0.03,141.33,141.31,342.3737639]
[1741193142330,0.03,141.33,141.28,80.9]
[1741193142535,0.03,141.33,141.27,0.033]
[1741193142912,0.03,141.33,141.27,7.1114]
[1741193143219,0.03,141.33,141.29,30.3737639]
[1741193143820,0.03,141.33,141.28,18.79181043]
[1741193143821,0.03,141.33,141.27,7.1114]
[1741193144132,0.03,141.33,141.28,18.79181043]
[1741193144312,0.03,141.33,141.29,30.3737639]
[1741193144631,0.03,141.33,141.3,30.3737639]
[1741193145222,0.03,141.33,141.3,342.3737639]
[1741193145837,0.03,141.33,141.31,30.3737639]
[1741193146210,0.03,141.33,141.29,37.4513639]
[1741193146411,0.03,141.33,141.27,0.033]
[1741193146717,46.52760257,141.33,141.27,0.033]
[1741193147520,0.42648471,141.32,141.27,0.033]
[1741193147724,1.6254,141.3,141.27,0.033]
[1741193147925,46.49760257,141.29,141.27,0.033]
[1741193149127,0.03,141.33,141.28,18.79181043]
[1741193149330,0.03,141.33,141.28,49.16557433]
[1741193149646,0.03,141.33,141.3,30.3737639]
[1741193150343,0.03,141.33,141.31,30.3737639]
[1741193150643,0.03,141.33,141.29,7.0776]
[1741193150817,0.03,141.32,141.29,37.4513639]
[1741193151144,0.03,141.32,141.3,30.3737639]
[1741193152530,0.03,141.32,141.31,319.0766]
[1741193154119,0.03,141.32,141.31,368.24217433]
[1741193156049,0.03,141.32,141.31,319.0766]
[1741193156225,0.03,141.32,141.28,37.4518639]
[1741193156425,0.03,141.32,141.28,7.0781]
[1741193156741,0.03,141.32,141.28,56.10151276]
[1741193157839,0.03,141.32,141.28,25.72774886]
[1741193158633,0.03,141.32,141.28,56.10151276]
[1741193158948,0.03,141.32,141.27,37.4852639]
[1741193159267,54.31340257,141.31,141.27,0.033]
[1741193159448,46.49760257,141.3,141.27,0.033]
[1741193159669,7.0776,141.29,141.27,0.033]
[1741193159824,53.57520257,141.29,141.27,0.033]
[1741193160020,46.49760257,141.29,141.27,0.033]
[1741193161453,0.42648471,141.28,141.24,0.033]
[1741193161661,7.0791,141.26,141.24,0.033]
[1741193161867,46.49760257,141.25,141.24,0.033]
[1741193162230,0.42648471,141.25,141.24,0.033]
[1741193162437,8.42818471,141.25,141.24,0.033]
[1741193162647,0.42648471,141.24,141.15,18.2259709]
[1741193162851,24.81926734,141.24,141.15,11.1414709]
[1741193163053,19.07613357,141.24,141.15,11.1414709]
[1741193163258,0.42648471,141.24,141.15,48.5995348]
[1741193163461,8.0017,141.25,141.17,30.51592547]
[1741193163770,15.0814,141.25,141.19,7.0826]
[1741193163948,15.0814,141.25,141.17,80.9]
[1741193164144,0.42648471,141.24,141.15,11.1414709]
[1741193164352,18.79181043,141.23,141.15,11.1414709]
[1741193164551,18.79181043,141.23,141.14,7.0847]
[1741193165143,18.79181043,141.23,141.13,87.9855]
[1741193165366,0.14216157,141.21,141.12,0.033]
[1741193165663,0.56864628,141.17,141.12,0.033]
[1741193165863,0.42648471,141.15,141.12,0.033]
[1741193166075,19.07613357,141.15,141.12,0.033]
[1741193166242,20.35721043,141.14,141.12,0.033]
[1741193166444,81.0,141.13,141.12,0.033]
[1741193166867,20.35721043,141.14,141.12,0.033]
[1741193167173,0.42648471,141.11,141.09,0.033]
[1741193167372,18.64964886,141.12,141.09,0.033]
[1741193167373,81.42648471,141.1,141.09,0.033]
[1741193167575,81.42648471,141.09,141.04,6.54e-05]
[1741193167756,81.42648471,141.09,141.03,0.0130654]
[1741193167757,2.07888471,141.05,141.03,0.0130654]
[1741193167944,81.42648471,141.04,141.03,0.0130654]
[1741193168151,81.0,141.04,141.03,0.0130654]
[1741193170750,81.0,141.07,141.03,0.0130654]
[1741193171257,81.0,141.09,141.03,0.0130654]
[1741193171463,81.0,141.08,141.03,0.0130654]
[1741193171775,81.0,141.08,141.01,30.3737639]
[1741193171961,81.0,141.08,141.0,25.74174886]
[1741193172163,81.0,141.08,141.0,56.11551276]
[1741193172881,0.42648471,141.07,141.0,7.0921]
[1741193173080,81.0,141.06,141.0,7.0921]
[1741193174384,81.0,141.06,141.0,37.4658639]
[1741193175158,0.42648471,141.05,140.99,7.1255]
[1741193175359,81.0,141.04,140.99,0.033]
[1741193176787,81.0,141.04,141.0,0.033]
[1741193176999,81.0,141.03,141.0,0.033]
[1741193177563,81.42648471,141.02,141.0,0.033]
[1741193177778,81.0,141.01,141.0,0.033]
[1741193178393,81.0,141.04,141.0,0.033]
[1741193179476,6.4173,141.07,141.01,30.28878054]
[1741193179689,81.0,141.08,141.02,30.3737639]
[1741193180286,81.0,141.08,141.03,7.0906]
[1741193180571,7.22893577,141.1,141.03,7.0906]
[1741193180572,81.0,141.09,141.03,37.4643639]
[1741193180975,81.0,141.09,141.03,7.0906]
[1741193181393,81.0,141.09,141.03,37.4643639]
[1741193182006,81.0,141.09,141.03,7.0906]
[1741193182504,81.0,141.09,141.03,319.0906]
[1741193182802,81.42648471,141.08,141.03,312.0]
[1741193182990,0.14216157,141.07,141.0,0.033]
[1741193183185,99.79181043,141.07,141.0,0.033]
[1741193183383,0.14216157,141.06,141.0,0.033]
[1741193183577,81.0,141.07,141.0,0.033]
[1741193183578,81.0,141.07,141.0,7.125]
[1741193184080,81.0,141.09,141.03,30.3737639]
[1741193184393,81.0,141.09,141.03,37.4640639]
[1741193184600,81.0,141.09,141.03,30.3737639]
[1741193184793,88.088,141.09,141.01,37.4653639]
[1741193184991,0.42648471,141.08,141.0,111.3067639]
[1741193185393,81.0,141.07,141.0,0.033]
[1741193185570,81.42648471,141.06,141.0,0.033]
[1741193186189,81.0,141.06,141.0,0.033]
[1741193186802,81.0,141.06,141.01,30.3737639]
[1741193187101,81.0,141.06,141.03,30.3737639]
[1741193187476,81.0,141.06,141.02,30.3737639]
[1741193187801,81.0,141.06,141.0,0.033]
[1741193188181,81.0,141.09,141.02,30.3737639]
[1741193188383,81.0,141.09,141.0,0.033]
[1741193188384,88.0877,141.09,141.0,0.033]
[1741193188691,81.0,141.08,141.0,30.4067639]
[1741193188893,7.0886,141.07,141.0,37.4988639]
[1741193189088,81.42648471,141.06,141.0,30.4067639]
[1741193189297,81.42648471,141.06,141.0,0.033]
[1741193189502,81.45648471,141.06,141.0,0.033]
[1741193190287,81.0,141.05,141.0,0.033]
[1741193190989,7.0901,141.04,141.0,0.033]
[1741193191690,87.6534,141.03,141.0,0.033]
[1741193192005,82.97258471,141.02,141.0,0.033]
[1741193192207,82.97258471,141.02,140.94,0.033]
[1741193192402,0.28432314,141.0,140.94,0.033]
[1741193193136,7.0927,140.99,140.94,0.033]
[1741193193319,88.0927,140.99,140.94,0.033]
[1741193193627,81.0,140.99,140.94,0.033]
[1741193193793,81.0,140.99,140.95,30.3737639]
[1741193194217,81.0,140.99,140.94,30.4067639]
[1741193194520,0.28432314,140.97,140.94,0.033]
[1741193194816,81.0,140.96,140.94,0.033]
[1741193195510,81.0,141.01,140.94,0.033]
[1741193195712,1.5461,141.02,140.96,30.3737639]
[1741193195892,0.42648471,141.01,140.94,80.933]
[1741193196094,8.6372,141.02,140.94,80.933]
[1741193196426,87.6534,141.03,140.96,30.3737639]
[1741193196600,81.0,141.03,140.98,30.3737639]
[1741193196819,88.0903,141.04,140.98,30.3737639]
[1741193197018,81.0,141.04,140.98,30.3737639]
[1741193197213,89.0703,141.06,141.0,30.3737639]
[1741193197412,0.03,141.06,141.02,30.3737639]
[1741193198222,0.03,141.06,141.01,49.02341276]
[1741193198722,0.03,141.06,141.01,361.02341276]
[1741193199219,0.03,141.06,141.03,30.3737639]
[1741193199722,0.03,141.06,141.01,129.92341276]
[1741193199906,0.03,141.06,141.01,137.01471276]
[1741193201021,0.03,141.06,141.02,30.3737639]
[1741193201327,0.03,141.06,141.03,7.0906]
[1741193201514,0.03,141.06,141.03,37.4643639]
[1741193201823,0.03,141.06,141.05,49.02341276]
[1741193202199,0.03,141.06,141.05,361.02341276]
[1741193203400,0.03,141.06,141.05,368.11301276]
[1741193204297,0.03,141.06,141.05,449.01301276]
[1741193204718,0.03,141.06,141.05,392.9]
[1741193204917,0.03,141.06,141.03,80.9]
[1741193205121,0.03,141.06,141.0,111.2737639]
[1741193205303,0.03,141.06,140.99,118.3662639]
[1741193206013,0.03,141.06,140.99,87.9925]
[1741193206628,0.03,141.06,140.99,118.3662639]
[1741193207115,0.03,141.06,141.02,30.3737639]
[1741193207512,0.03,141.06,141.03,7.0906]
[1741193207910,0.03,141.06,141.04,18.64964886]
[1741193208111,0.03,141.06,141.03,349.4643639]
[1741193208311,0.03,141.06,141.03,312.0]
[1741193208536,0.03,141.06,141.01,7.0915]
[1741193208838,0.03,141.06,141.02,18.64964886]
[1741193209025,0.03,141.06,141.02,49.02341276]
[1741193209327,0.03,141.06,141.03,30.3737639]
[1741193209631,0.03,141.06,141.02,80.9]
[1741193209805,0.03,141.06,141.02,87.991]
[1741193210128,0.03,141.06,141.03,18.64964886]
[1741193210338,0.03,141.06,141.03,49.02341276]
[1741193210512,0.03,141.06,141.03,18.64964886]
[1741193211409,0.03,141.06,141.03,312.0]
[1741193211731,0.03,141.06,141.04,7.0901]
[1741193211909,0.03,141.06,141.04,118.3638639]
[1741193212323,0.03,141.06,141.01,37.4652639]
[1741193212930,0.03,141.06,141.02,49.02341276]
[1741193213535,0.03,141.06,141.03,30.3737639]
[1741193213717,0.03,141.06,141.04,7.0901]
[1741193214230,0.03,141.06,141.04,37.4638639]
[1741193214439,0.03,141.06,141.04,7.0901]
[1741193214928,0.03,141.06,141.04,37.4638639]
[1741193215110,0.03,141.06,141.04,319.0901]
[1741193215932,0.03,141.06,141.04,349.4638639]
[1741193216136,0.03,141.06,141.05,49.02341276]
[1741193216312,0.03,141.06,141.05,18.64964886]
[1741193217116,0.03,141.06,141.04,319.0901]
[1741193217323,0.03,141.06,141.04,312.0]
[1741193217633,0.03,141.06,141.02,80.9]
[1741193217938,0.03,141.06,141.02,136.0927639]
[1741193218123,0.03,141.06,141.03,49.02341276]
[1741193218524,0.03,141.06,141.03,129.92341276]
[1741193219039,0.03,141.06,141.01,87.9916]
[1741193219930,0.03,141.06,141.03,30.3737639]
[1741193220637,0.03,141.06,141.03,342.3737639]
[1741193220834,0.03,141.06,141.03,312.0]
[1741193221139,0.03,141.06,141.05,30.3737639]
[1741193221335,0.03,141.06,141.05,130.06557433]
[1741193221638,0.03,141.06,141.01,87.9916]
[1741193221826,0.03,141.06,141.01,80.9]
[1741193222526,0.03,141.06,141.01,87.9915]
[1741193222832,0.03,141.06,141.04,18.64964886]
[1741193223012,0.03,141.06,141.04,30.3737639]
[1741193223229,0.03,141.06,141.04,18.64964886]
[1741193223736,0.03,141.06,141.04,25.73964886]
[1741193224134,0.03,141.06,141.04,18.64964886]
[1741193224336,0.03,141.06,141.04,368.11351276]
[1741193224538,0.03,141.06,141.05,30.51592547]
[1741193225145,0.03,141.06,141.05,30.3737639]
[1741193225324,0.03,141.06,141.04,37.4638639]
[1741193225527,0.03,141.06,141.03,56.11391276]
[1741193225744,0.03,141.06,141.02,37.4647639]
[1741193225940,0.03,141.06,141.03,0.14216157]
[1741193226153,0.03,141.06,141.04,18.64964886]
[1741193226356,0.03,141.06,141.04,49.02341276]
[1741193226650,0.03,141.06,141.05,30.51592547]
[1741193227156,0.03,141.06,141.05,111.41592547]
[1741193227325,0.03,141.06,141.05,111.2737639]
[1741193227731,0.03,141.06,141.05,441.92341276]
[1741193227942,0.03,141.06,141.05,449.01301276]
[1741193228334,0.03,141.06,141.05,137.58165904]
[1741193228526,43.48614518,141.18,141.13,30.3737639]
[1741193228527,81.03,141.18,141.13,30.3737639]
[1741193228722,0.03,141.18,141.17,30.3737639]
[1741193229262,0.03,141.18,141.17,49.16557433]
[1741193229431,0.03,141.18,141.16,30.3737639]
[1741193229923,0.03,141.18,141.17,49.16557433]
[1741193230341,0.03,141.18,141.17,130.49205904]
[1741193230656,0.03,141.18,141.17,130.06557433]
[1741193230843,0.03,141.18,141.17,111.2737639]
[1741193231155,0.03,141.18,141.17,80.9]
[1741193231667,0.03,141.18,141.15,30.3737639]
[1741193232129,0.03,141.18,141.16,30.3737639]
[1741193232333,0.03,141.18,141.17,49.16557433]
[1741193232932,0.03,141.18,141.16,30.3737639]
[1741193233347,0.03,141.18,141.15,30.51592547]
[1741193233653,0.03,141.18,141.17,30.3737639]
[1741193234459,0.03,141.18,141.17,349.4573639]
[1741193234840,0.03,141.18,141.17,312.0]
[1741193235033,0.03,141.18,141.14,80.9]
[1741193235357,0.03,141.18,141.13,30.3737639]
[1741193235544,0.03,141.18,141.12,18.64964886]
[1741193235858,0.03,141.18,141.15,30.51592547]
[1741193236052,0.03,141.18,141.17,30.3737639]
[1741193236265,0.03,141.18,141.17,37.4573639]
[1741193236561,0.03,141.18,141.17,56.24917433]
[1741193237150,0.03,141.18,141.17,137.57565904]
[1741193237332,0.03,141.18,141.17,244.66274598]
[1741193237532,0.03,141.18,141.17,243.17565904]
[1741193238040,0.03,141.21,141.18,18.79181043]
[1741193238250,0.03,141.21,141.2,37.4558639]
[1741193238454,0.03,141.21,141.15,80.9]
[1741193238658,0.03,141.21,141.12,118.3596639]
[1741193238842,0.03,141.21,141.13,30.3737639]
[1741193239162,0.03,141.21,141.16,49.02341276]
[1741193239360,0.03,141.21,141.16,80.9]
[1741193239963,0.03,141.21,141.16,111.2737639]
[1741193240346,0.03,141.21,141.17,30.3737639]
[1741193240545,0.03,141.21,141.17,37.4573639]
[1741193240761,0.03,141.21,141.17,30.3737639]
[1741193240958,0.03,141.21,141.17,18.79181043]
[1741193241259,0.03,141.21,141.2,49.16557433]
[1741193241562,0.03,141.21,141.2,443.97867904]
[1741193241747,0.03,141.21,141.2,442.49205904]
[1741193241937,0.03,141.21,141.2,111.41592547]
[1741193242138,0.03,141.21,141.2,130.49205904]
[1741193242364,0.03,141.21,141.2,139.06069788]
[1741193243453,6.0404226,141.28,141.25,19.07613357]
[1741193243636,6.0404226,141.28,141.27,49.59205904]
[1741193243841,6.0404226,141.28,141.27,237.57795501]
[1741193244138,6.0404226,141.28,141.27,235.66557433]
[1741193244443,6.0404226,141.28,141.27,242.74417433]
[1741193245071,6.0404226,141.28,141.27,554.74417433]
[1741193245735,6.0404226,141.28,141.27,423.2737639]
[1741193245941,6.0404226,141.28,141.27,80.9]
[1741193246942,6.0404226,141.28,141.27,111.2737639]
[1741193247154,6.0404226,141.28,141.27,137.14417433]
[1741193248352,6.0404226,141.28,141.27,80.9]
[1741193248552,6.0404226,141.28,141.27,87.9786]
[1741193248772,6.0404226,141.28,141.27,80.9]
[1741193249396,6.0404226,141.28,141.27,87.9786]
[1741193250862,6.0404226,141.28,141.27,80.9]
[1741193251178,6.0404226,141.28,141.26,7.0791]
[1741193251471,6.0404226,141.28,141.27,18.79181043]
[1741193251650,2.26e-05,141.28,141.27,131.97814863]
[1741193252575,2.26e-05,141.28,141.27,413.17790002]
[1741193252759,2.26e-05,141.28,141.26,0.14216157]
[1741193253597,2.26e-05,141.28,141.25,87.9793]
[1741193253889,2.26e-05,141.28,141.25,87.9795]
[1741193254467,2.26e-05,141.28,141.24,0.14216157]
[1741193254669,2.26e-05,141.28,141.24,81.04216157]
[1741193255064,2.26e-05,141.28,141.24,88.12216157]
[1741193255270,2.26e-05,141.28,141.26,0.14216157]
[1741193256190,2.26e-05,141.28,141.25,0.033]
[1741193256483,7.0791,141.26,141.25,0.033]
[1741193257793,7.5557,141.27,141.25,0.033]
[1741193257794,14.6345,141.27,141.25,0.033]
[1741193257995,95.6345,141.27,141.25,0.033]
[1741193258379,14.6345,141.27,141.25,0.033]
[1741193258779,7.5557,141.27,141.25,0.033]
[1741193259482,0.0300226,141.28,141.25,0.033]
[1741193260493,7.1081226,141.28,141.25,0.033]
[1741193260698,0.0300226,141.28,141.25,0.033]
[1741193262791,0.0300226,141.28,141.25,80.933]
[1741193262981,0.0300226,141.28,141.25,0.033]
[1741193264000,0.0300226,141.28,141.25,20.033]
[1741193264187,0.0300226,141.28,141.27,49.59205904]
[1741193264406,0.0300226,141.28,141.27,236.09205904]
[1741193264701,0.0300226,141.28,141.27,243.17065904]
[1741193266201,0.0300226,141.28,141.27,555.17065904]
[1741193266499,0.0300226,141.28,141.27,524.37041043]
[1741193266678,0.0300226,141.28,141.27,554.74417433]
[1741193266880,0.0300226,141.28,141.27,555.17065904]